fUST/lending_fUST_20240113
["ID","MTS","AMOUNT","RATE_DAILY","PERIOD"]
[311446432,1705132238877,-155.47834561,0.00024179,2]
[311446433,1705132238887,-2844.80140438,0.0002418,2]
[311446434,1705132238896,-266.44720485,0.0002418,2]
[311446435,1705132238905,-155.58106188,0.0002418,2]
[311446436,1705132238915,-174.54803688,0.0002418,2]
[311446437,1705132238924,-197.93466381,0.0002418,2]
[311446438,1705132238933,-2715.56172826,0.0002418,2]
[311446439,1705132238943,-309.81420128,0.0002418,2]
[311446440,1705132239054,-246.24935247,0.00024191,2]
[311446441,1705132239068,-151.0,0.00024209,2]
[311446442,1705132239077,-192.713332,0.00024482,2]
[311446443,1705132239087,-165.2710379,0.00024627,2]
[311446444,1705132239096,-3020.47058663,0.00025,2]
[311446445,1705132239106,-280.0,0.00025357,7]
[311446446,1705132239115,-410.93401973,0.00025387,2]
[311446447,1705132239125,-151.0,0.0002565,2]
[311446448,1705132239135,-200.0,0.00025941,2]
[311446449,1705132239145,-1822.74700439,0.00025941,2]
[311446451,1705132239154,-390.07524259,0.00027,2]
[311446453,1705132239164,-3315.28779545,0.00027,2]
[311446455,1705132239173,-467.5107266,0.00027,2]
[311446456,1705132239182,-1119.184732,0.00027,2]
[311446457,1705132239191,-1119.184732,0.00027,2]
[311446458,1705132239201,-151.0,0.00027092,2]
[311446460,1705132239210,-5000.0,0.00027397,2]
[311446462,1705132239219,-607.25284495,0.00027397,2]
[311446464,1705132239229,-150.0,0.00027466,2]
[311446466,1705132239238,-410.93401973,0.00027641,2]
[311446468,1705132239248,-391.0,0.00027892,15]
[311446470,1705132239257,-10131.0472122,0.00027899,2]
[311446472,1705132239267,-2000.0,0.000279,2]
[311446474,1705132239278,-2000.0,0.0002791,2]
[311446476,1705132239287,-2000.0,0.0002792,2]
[311446477,1705132239296,-2000.0,0.0002793,2]
[311446478,1705132239306,-2000.0,0.0002794,2]
[311446479,1705132239316,-2000.0,0.0002795,2]
[311446480,1705132239325,-3250.990183,0.0002796,2]
[311446481,1705132239335,-820.12172211,0.00027989,3]
[311446482,1705132239344,-3575.10707119,0.00027989,3]
[311446483,1705132239353,-64839.71103102,0.00027989,3]
[311446484,1705132239362,-1119.184732,0.00027989,2]
[311446485,1705132239371,-1119.184732,0.00027989,2]
[311446486,1705132239380,-1119.184732,0.00027989,2]
[311446487,1705132239389,-1119.184732,0.00027989,2]
[311446488,1705132239399,-4923.40724373,0.00027993,2]
[311446489,1705132239409,-155.02480397,0.00028,4]
[311446490,1705132239421,-8887.11213609,0.00028,2]
[311446491,1705132239430,-2842.11489009,0.00028,2]
[311446492,1705132239440,-151.0,0.00028533,2]
[311446493,1705132239449,-988.7095851,0.00028749,2]
[311446494,1705132239458,-3907.54952271,0.000288,2]
[311446495,1705132239467,-160.46324954,0.00028821,2]
[311446496,1705132239477,-168.308979,0.0002883,2]
[311446497,1705132239486,-161.047082,0.0002883,2]
[311446498,1705132239495,-188.496881,0.0002883,2]
[311446499,1705132239504,-183.203267,0.0002883,2]
[311446500,1705132239514,-631.500944,0.0002883,2]
[311446501,1705132239523,-215.12463,0.0002883,2]
[311446502,1705132239533,-600.093444,0.0002883,2]
[311446503,1705132239544,-384.578037,0.0002883,2]
[311446504,1705132239554,-164.725579,0.0002883,2]
[311446505,1705132239563,-1119.184732,0.0002883,2]
[311446506,1705132239573,-1119.184732,0.0002883,2]
[311446507,1705132239583,-6033.19021278,0.000289,18]
[311446508,1705132239592,-303.47274515,0.000289,2]
[311446509,1705132239602,-481.75,0.00029,2]
[311446510,1705132239612,-592.73,0.00029,2]
[311446511,1705132239622,-155.37817011,0.00029,2]
[311446512,1705132239632,-152.87958298,0.00029161,2]
[311446513,1705132239641,-215.12463,0.0002919,2]
[311446514,1705132239650,-631.500944,0.0002919,2]
[311446515,1705132239659,-600.093444,0.0002919,2]
[311446516,1705132239669,-384.578037,0.0002919,2]
[311446517,1705132239680,-179.98076241,0.00029318,2]
[311446518,1705132239689,-6483.1604567,0.00029318,2]
[311446519,1705132239701,-166.78443755,0.00029318,2]
[311446520,1705132239711,-215.12463,0.00029551,2]
[311446521,1705132239722,-631.500944,0.00029551,2]
[311446522,1705132239731,-384.578037,0.00029551,2]
[311446523,1705132239740,-600.093444,0.00029551,2]
[311446524,1705132239750,-152.87958298,0.00029804,2]
[311446525,1705132239759,-410.93401973,0.00029895,2]
[311446526,1705132239771,-215.12463,0.00029911,2]
[311446527,1705132239781,-631.500944,0.00029911,2]
[311446528,1705132239790,-384.578037,0.00029911,2]
[311446529,1705132239799,-600.093444,0.00029911,2]
[311446530,1705132239808,-151.0,0.00029974,2]
[311446532,1705132239818,-1413.40849044,0.00029994,2]
[311446534,1705132239828,-500.0,0.00029994,2]
[311446536,1705132239837,-500.0,0.00029994,2]
[311446538,1705132239846,-500.0,0.00029994,2]
[311446539,1705132239855,-644.76366973,0.00029994,2]
[311446540,1705132239865,-465.68487855,0.00029994,2]
[311446541,1705132239875,-394.91017084,0.00029994,2]
[311446542,1705132239884,-500.0,0.00029994,2]
[311446543,1705132239893,-500.0,0.00029994,2]
[311446544,1705132239902,-500.0,0.00029994,2]
[311446545,1705132239912,-500.0,0.00029994,2]
[311446546,1705132239921,-500.0,0.00029994,2]
[311446547,1705132239930,-500.0,0.00029994,2]
[311446548,1705132239939,-500.0,0.00029994,2]
[311446549,1705132239948,-500.0,0.00029994,2]
[311446550,1705132239958,-500.0,0.00029994,2]
[311446551,1705132239966,-500.0,0.00029994,2]
[311446552,1705132239975,-500.0,0.00029994,2]
[311446553,1705132239985,-500.0,0.00029994,2]
[311446554,1705132239997,-500.0,0.00029994,2]
[311446555,1705132240006,-500.0,0.00029994,2]
[311446556,1705132240016,-500.0,0.00029994,2]
[311446557,1705132240024,-500.0,0.00029994,2]
[311446558,1705132240033,-394.7063365,0.00029994,2]
[311446559,1705132240042,-500.0,0.00029994,2]
[311446560,1705132240051,-500.0,0.00029994,2]
[311446561,1705132240060,-500.0,0.00029994,2]
[311446562,1705132240069,-500.0,0.00029994,2]
[311446564,1705132240078,-500.0,0.00029994,2]
[311446565,1705132240087,-500.0,0.00029994,2]
[311446567,1705132240096,-500.0,0.00029994,2]
[311446568,1705132240105,-500.0,0.00029994,2]
[311446569,1705132240115,-500.0,0.00029994,2]
[311446570,1705132240124,-500.0,0.00029994,2]
[311446571,1705132240133,-500.0,0.00029994,2]
[311446572,1705132240142,-500.0,0.00029994,2]
[311446573,1705132240151,-500.0,0.00029994,2]
[311446574,1705132240161,-500.0,0.00029994,2]
[311446575,1705132240170,-408.66602894,0.00029994,2]
[311446576,1705132240179,-500.0,0.00029994,2]
[311446577,1705132240188,-500.0,0.00029994,2]
[311446578,1705132240196,-358.46584574,0.00029994,2]
[311446579,1705132240206,-500.0,0.00029994,2]
[311446580,1705132240215,-844.0229169,0.00029995,2]
[311446581,1705132240223,-1119.184732,0.00029996,2]
[311446582,1705132240233,-1119.18473,0.00029996,2]
[311446583,1705132240242,-15684.62220091,0.00029996,2]
[311446584,1705132240251,-2817.94031241,0.00029996,2]
[311446585,1705132240260,-179.14660724,0.00029996,2]
[311446586,1705132240270,-155.13845381,0.00029996,2]
[311446587,1705132240279,-1061.74107601,0.00029996,7]
[311446588,1705132240288,-263.37276403,0.00029996,7]
[311446589,1705132240297,-5444.19564025,0.00029996,2]
[311446590,1705132240306,-356.43634555,0.00029996,2]
[311446591,1705132240315,-522.66684843,0.00029996,2]
[311446592,1705132240324,-774.46613219,0.00029997,2]
[311446593,1705132240333,-198.89011836,0.00029998,2]
[311446594,1705132240342,-164.35360079,0.00029998,2]
[311446595,1705132240351,-264.9672714,0.00029998,2]
[311446596,1705132240361,-309.56754857,0.00029998,2]
[311446597,1705132240371,-155.0,0.00029998,2]
[311446598,1705132240380,-160.73743715,0.00029999,2]
[311446599,1705132240389,-161.94694653,0.00029999,10]
[311446600,1705132240398,-2000.0,0.00029999,2]
[311446601,1705132240407,-593.45847134,0.00029999,4]
[311446602,1705132240420,-500.0,0.00029999,4]
[311446603,1705132240429,-500.0,0.00029999,4]
[311446604,1705132240438,-500.0,0.00029999,4]
[311446605,1705132240447,-500.0,0.00029999,4]
[311446606,1705132240456,-500.0,0.00029999,4]
[311446607,1705132240466,-278.11938365,0.00029999,4]
[311446608,1705132240476,-428.37226457,0.00029999,4]
[311446609,1705132240485,-499.39219028,0.00029999,4]
[311446610,1705132240495,-500.0,0.00029999,4]
[311446611,1705132240505,-500.0,0.00029999,4]
[311446612,1705132240514,-500.0,0.00029999,4]
[311446613,1705132240523,-500.0,0.00029999,4]
[311446614,1705132240532,-500.0,0.00029999,4]
[311446615,1705132240541,-3658.28,0.0003,2]
[311446616,1705132240552,-1290.4,0.0003,2]
[311446617,1705132240562,-2152.44432093,0.0003,4]
[311446618,1705132240572,-155.01395126,0.0003,2]
[311446619,1705132240581,-367.24981873,0.0003,2]
[311446620,1705132240590,-5891.2466626,0.0003,4]
[311446621,1705132240599,-155.01395126,0.0003,4]
[311446622,1705132240608,-10531.28284953,0.0003,4]
[311446623,1705132240617,-736.48517666,0.0003,4]
[311446624,1705132240626,-640.06125546,0.0003,4]
[311446625,1705132240635,-52721.55940484,0.0003,15]
[311446626,1705132240644,-2003.09,0.0003,2]
[311446627,1705132240653,-1716.35,0.0003,2]
[311446628,1705132240662,-687.09987426,0.0003,4]
[311446629,1705132240671,-2000.0,0.0003,2]
[311446630,1705132240680,-15885.76749349,0.0003,2]
[311446631,1705132240689,-208621.25987747,0.0003,2]
[311446632,1705132240699,-863.68,0.0003,2]
[311446633,1705132240708,-300.0,0.0003,14]
[311446634,1705132240717,-221.97120976,0.0003,4]
[311446635,1705132240726,-500.0,0.0003,3]
[311446636,1705132240735,-1344.98185928,0.0003,2]
[311446637,1705132240744,-193.0,0.0003,2]
[311446638,1705132240754,-1212.41219105,0.0003,2]
[311446639,1705132240763,-161.7603615,0.00030136,2]
[311446640,1705132240773,-2000.0,0.00030137,2]
[311446641,1705132240783,-152.87958298,0.0003016,7]
[311446642,1705132240792,-215.12463,0.00030271,2]
[311446643,1705132240801,-631.500944,0.00030271,2]
[311446644,1705132240810,-384.578037,0.00030271,2]
[311446645,1705132240818,-600.093444,0.00030271,2]
[311446646,1705132240827,-161.047082,0.00030272,2]
[311446647,1705132240837,-150.5,0.0003066,30]
[311446648,1705132240846,-150.5,0.0003066,30]
[311446650,1705132240855,-2223.0,0.0003066,30]
[311446651,1705132240864,-150.5,0.0003067,30]
[311446653,1705132240873,-150.5,0.0003067,30]
[311446654,1705132240882,-150.5,0.0003067,30]
[311446655,1705132240891,-2223.0,0.0003067,30]
[311446656,1705132240900,-261.2,0.0003067,30]
[311446657,1705132240909,-176.0,0.0003067,30]
[311446658,1705132240918,-300.44,0.0003068,30]
[311446659,1705132240927,-150.5,0.0003068,30]
[311446660,1705132240936,-150.5,0.0003068,30]
[311446661,1705132240945,-150.5,0.0003068,30]
[311446662,1705132240954,-2223.0,0.0003068,30]
[311446663,1705132240963,-150.5,0.0003068,30]
[311446664,1705132240972,-150.5,0.0003068,30]
[311446665,1705132240981,-150.51,0.0003068,30]
[311446666,1705132240991,-200.0,0.00030682,15]
[311446667,1705132241000,-348.0,0.00030682,15]
[311446668,1705132241009,-3831.52999447,0.00030833,4]
[311446669,1705132241018,-10191.89813466,0.00030833,4]
[311446670,1705132241027,-1261.19770865,0.00030833,4]
[311446671,1705132241035,-155.1013031,0.00030833,4]
[311446672,1705132241045,-190.64320071,0.00030833,4]
[311446673,1705132241053,-155.15506132,0.00030833,2]
[311446674,1705132241063,-268.18622721,0.00030833,4]
[311446675,1705132241071,-220.03156604,0.00030833,4]
[311446676,1705132241081,-1031.36030978,0.00030835,14]
[311446677,1705132241089,-11172.60415826,0.00030835,4]
[311446678,1705132241098,-155.38492764,0.00030836,4]
[311446679,1705132241107,-839.84,0.00030837,2]
[311446680,1705132241116,-173.22784151,0.00030898,5]
[311446681,1705132241125,-173.22,0.00030898,5]
[311446682,1705132241134,-153.98030356,0.00030898,5]
[311446683,1705132241144,-153.98030356,0.00030898,5]
[311446684,1705132241152,-153.98030356,0.00030898,5]
[311446685,1705132241161,-153.98030356,0.00030898,5]
[311446686,1705132241170,-153.98030356,0.00030898,5]
[311446687,1705132241179,-153.98030356,0.00030898,5]
[311446688,1705132241188,-153.98030356,0.00030898,5]
[311446689,1705132241197,-153.98030356,0.00030898,5]
[311446690,1705132241206,-153.98,0.000309,5]
[311446691,1705132241215,-21628.57307954,0.000309,3]
[311446692,1705132241225,-202113.72104087,0.00030998,2]
[311446693,1705132241293,-155.0,0.00020844,2]
[311446694,1705132241302,-529.92010571,0.00029999,4]
[311446695,1705132241311,-151898.77584907,0.00030998,2]
[311446704,1705132242736,-500.0,0.00029994,2]
[311446705,1705132242747,-232.5048622,0.00029994,2]
[311446706,1705132242758,-500.0,0.00029994,2]
[311446707,1705132242771,-47.0793305,0.00029994,2]
[311446774,1705132696579,200.0,0.00023097,7]
[311446816,1705132996589,200.0,0.0002297,7]
[311446818,1705133015958,-400.22268597,0.00020784,2]
[311446819,1705133015985,-160.76828212,0.00020785,2]
[311446820,1705133016042,-11.44879527,0.00020785,2]
[311446826,1705133048113,348.0,0.000299,120]
[311446843,1705133297078,200.0,0.00022949,7]
[311446849,1705133374622,-155.01240099,0.00020857,4]
[311446850,1705133404922,-1990.42773149,0.00020852,2]
[311446851,1705133404944,-9.57226851,0.00020852,2]
[311446867,1705133431930,-3739.83692248,0.00020851,2]
[311446868,1705133431940,-2928.5969178,0.00020851,2]
[311446869,1705133431949,-544.87386729,0.00020852,2]
[311446870,1705133431959,-1195.69868667,0.00020852,2]
[311446871,1705133431969,-2035.80105868,0.00020853,2]
[311446872,1705133431978,-509.2399507,0.00020854,2]
[311446873,1705133431988,-19835.34944112,0.00020854,2]
[311446874,1705133431997,-20842.42787433,0.00020855,2]
[311446875,1705133432006,-159.15098982,0.00020889,2]
[311446876,1705133432017,-7912.20242962,0.00021,2]
[311446877,1705133432030,-156.94549562,0.00022,2]
[311446878,1705133432177,-159.15098979,0.00022088,2]
[311446879,1705133432189,-16213.45400052,0.00022147,2]
[311446880,1705133432202,-479.71329689,0.00022147,2]
[311447174,1705133440893,-326.91284264,0.00021,2]
[311447175,1705133440902,-782.03593779,0.00022147,2]
[311447176,1705133440948,-917.11150094,0.00022147,2]
[311447188,1705133442921,-409.39328523,0.00022147,2]
[311447189,1705133442934,-1119.27880655,0.00022147,2]
[311447228,1705133683259,155.01240099,0.00020849,4]
[311447241,1705133859531,-400.22268597,0.00020745,2]
[311447242,1705133859558,-147.96351628,0.00020746,2]
[311447243,1705133859816,-11.18747351,0.00020746,2]
[311447246,1705133881441,-536.10386855,0.00020746,2]
[311447247,1705133881784,-10.94089528,0.00020746,2]
[311447248,1705133896843,200.0,0.00022931,7]
[311447250,1705133950834,-155.02015262,0.00020745,2]
[311447251,1705133950861,-182.55120152,0.00020746,2]
[311447252,1705133950949,-6.88921131,0.00020746,2]
[311447255,1705133993326,155.02015262,0.00020841,4]
[311447286,1705134497608,200.0,0.00022901,7]
[311447296,1705134632122,-2928.5969178,0.00020815,2]
[311447297,1705134632132,-5677.53542841,0.00020815,2]
[311447397,1705134717935,155.02015262,0.00020813,4]
[311447401,1705134784376,-560.74395883,0.0001876,2]
[311447402,1705134784404,-140.70487039,0.00018761,3]
[311447403,1705134784675,-14.31528223,0.00018761,3]
[311447404,1705134784714,-155.02015262,0.0002,2]
[311447407,1705134797175,200.0,0.00022878,7]
[311447408,1705134801072,1061.74107601,0.00020807,7]
[311447409,1705134804438,263.37276403,0.00020807,7]
[311447410,1705134810084,-3665.04018403,0.00020797,2]
[311447411,1705134810268,-74.79673845,0.00020797,2]
[311447413,1705134810994,205.46700987,0.00020709,2]
[311447417,1705134814290,-12000.0,0.00020797,2]
[311447418,1705134814517,-7835.34944112,0.00020797,2]
[311447420,1705134823903,-575.59509298,0.00020797,2]
[311447421,1705134824210,-11.74683863,0.00020797,2]
[311447422,1705134825005,563.84825435,0.00020797,2]
[311447423,1705134825032,575.59509298,0.00020797,2]
[311447424,1705134825374,-12000.0,0.00020797,2]
[311447425,1705134825654,-6530.01553083,0.00020797,2]
[311447427,1705134829716,-1660.28999945,0.00020797,2]
[311447428,1705134829935,-33.88346938,0.00020797,2]
[311447436,1705135097299,200.0,0.00021757,7]
[311447456,1705135399267,280.0,0.00022587,7]
[311447476,1705135698297,280.0,0.00021221,7]
[311447501,1705135833643,-261.8986851,0.00017522,2]
[311447502,1705135833656,-400.22268597,0.00017522,2]
[311447503,1705135833667,-155.01705188,0.00017523,2]
[311447504,1705135833676,-964.13846581,0.00017523,2]
[311447505,1705135833688,-1071.66259287,0.00017523,2]
[311447506,1705135833699,-3739.83692248,0.00017523,2]
[311447507,1705135833710,-3479.89143237,0.00017523,2]
[311447508,1705135833726,-155.01705188,0.00017524,2]
[311447509,1705135833745,-2928.5969178,0.00017524,2]
[311447510,1705135833758,-643.28378818,0.00017524,2]
[311447511,1705135833770,-19835.34944112,0.00017524,2]
[311447512,1705135833783,-7990.7979956,0.00017524,2]
[311447513,1705135833796,-5956.47000547,0.00017524,2]
[311447514,1705135833807,-178.6090388,0.00017525,2]
[311447515,1705135833819,-66977.1193936,0.00017525,2]
[311447564,1705135838530,-155.01705188,0.00017521,2]
[311447566,1705135838540,-4461.39040503,0.00017522,2]
[311447569,1705135838550,-14109.63307646,0.00017525,2]
[311447571,1705135838559,-2031.04627016,0.00017525,2]
[311447573,1705135838569,-466.88440498,0.00017526,2]
[311447574,1705135838578,-36905.76332305,0.00017526,2]
[311447575,1705135838587,-19669.45887816,0.00017526,2]
[311447576,1705135838596,-15888.77749284,0.00017526,2]
[311447577,1705135838606,-20842.42787433,0.00017527,2]
[311447579,1705135838615,-253.67809972,0.00017527,2]
[311447580,1705135838624,-554.4461358,0.00017527,2]
[311447581,1705135838633,-509.2399507,0.00017527,2]
[311447582,1705135838642,-23824.33076765,0.00017527,2]
[311447583,1705135838653,-4790.79275157,0.00017528,2]
[311447584,1705135838663,-1990.42773149,0.00017529,2]
[311447585,1705135838673,-2810.26109338,0.0001753,2]
[311447586,1705135838684,-369.84061777,0.00017551,2]
[311447587,1705135838693,-7659.6635275,0.00017663,2]
[311447588,1705135838704,-246.19657285,0.000178,2]
[311447589,1705135838714,-10509.72430071,0.00017898,2]
[311447590,1705135838725,-155.01705188,0.00018,2]
[311447591,1705135838736,-202.31516343,0.000189,2]
[311447592,1705135838747,-1579.55237576,0.00019,2]
[311447593,1705135838759,-292.18002156,0.00019172,2]
[311447594,1705135838770,-163.34498108,0.00019172,2]
[311447595,1705135838781,-309.95350465,0.00019173,2]
[311447596,1705135838791,-164.660471,0.00019178,2]
[311447597,1705135838801,-200.0,0.00019292,2]
[311447598,1705135838812,-1817.01541412,0.00019791,2]
[311447599,1705135838823,-272.23338199,0.0002,2]
[311447600,1705135838834,-1195.69868667,0.0002,2]
[311447601,1705135838846,-369.84061776,0.00020145,2]
[311447602,1705135838856,-232.60464348,0.0002077,2]
[311447603,1705135838866,-2872.50360392,0.0002077,2]
[311447604,1705135838876,-272.7015152,0.0002077,2]
[311447605,1705135838886,-299.18380868,0.0002077,2]
[311447606,1705135838896,-686.42603668,0.0002077,2]
[311447607,1705135838907,-155.54690548,0.0002077,2]
[311447608,1705135838916,-208.9483681,0.0002077,2]
[311447609,1705135838927,-167.13252298,0.0002077,2]
[311447610,1705135838937,-593.14721679,0.0002077,2]
[311447611,1705135838947,-974.35417388,0.0002077,2]
[311447612,1705135838957,-155.20930172,0.0002077,2]
[311447613,1705135838970,-286.60390027,0.0002077,2]
[311447614,1705135838979,-862.58636192,0.0002077,2]
[311447615,1705135838990,-191.33859155,0.0002077,2]
[311447616,1705135839001,-204.51204576,0.0002077,2]
[311447617,1705135839012,-361.77320852,0.0002077,2]
[311447618,1705135839023,-155.37359722,0.0002077,2]
[311447619,1705135839033,-191.26090819,0.0002077,2]
[311447620,1705135839043,-160.82569621,0.0002077,2]
[311447621,1705135839053,-155.59441733,0.0002077,2]
[311447622,1705135839063,-393.83792509,0.0002077,2]
[311447623,1705135839073,-1737.50355215,0.0002077,2]
[311447624,1705135839083,-155.8383382,0.0002077,2]
[311447625,1705135839093,-175.0053645,0.0002077,2]
[311447626,1705135839104,-155.12392617,0.0002077,2]
[311447627,1705135839114,-242.43842812,0.0002077,2]
[311447628,1705135839124,-213.55662846,0.0002077,2]
[311447629,1705135839134,-323.84922554,0.0002077,2]
[311447630,1705135839144,-302.72349332,0.00020771,2]
[311447631,1705135839154,-183.30400087,0.00020771,2]
[311447632,1705135839163,-155.23741757,0.00020771,2]
[311447633,1705135839173,-2223.83341408,0.00020781,2]
[311447634,1705135839184,-197.93466381,0.00020782,2]
[311447635,1705135839194,-246.24935247,0.00020782,2]
[311447636,1705135839204,-155.58106188,0.00020782,2]
[311447637,1705135839214,-2715.56172826,0.00020782,2]
[311447638,1705135839224,-618.26601653,0.00020782,2]
[311447639,1705135839232,-254.93463621,0.00020782,2]
[311447640,1705135839241,-266.44720485,0.00020782,2]
[311447641,1705135839251,-250.39112385,0.00020782,2]
[311447642,1705135839260,-471.0678306,0.00020782,2]
[311447643,1705135839270,-155.15354637,0.00020782,2]
[311447644,1705135839282,-155.32514544,0.00020782,2]
[311447645,1705135839292,-155.47834561,0.00020782,2]
[311447646,1705135839301,-309.81420128,0.00020782,2]
[311447647,1705135839311,-232.40652231,0.00020782,2]
[311447648,1705135839321,-192.84320712,0.00020782,2]
[311447649,1705135839330,-157.0556053,0.00020782,2]
[311447650,1705135839339,-1056.84650402,0.00020782,2]
[311447651,1705135839349,-155.58169426,0.00020782,2]
[311447652,1705135839360,-525.7882447,0.00020782,2]
[311447653,1705135839369,-572.76090318,0.00020782,2]
[311447654,1705135839379,-2510.66196852,0.00020782,2]
[311447655,1705135839388,-284.72592957,0.00020782,2]
[311447656,1705135839399,-734.26482131,0.00020782,2]
[311447657,1705135839409,-167.23543619,0.00020782,2]
[311447658,1705135839418,-676.95397771,0.00020782,2]
[311447659,1705135839428,-863.09747679,0.00020782,2]
[311447660,1705135839438,-155.10433612,0.00020782,2]
[311447661,1705135839447,-636.22407703,0.00020782,2]
[311447662,1705135839457,-174.54803688,0.00020783,2]
[311447663,1705135839466,-200.0,0.00020783,2]
[311447664,1705135839476,-155.1054483,0.00020783,2]
[311447665,1705135839485,-200.0,0.00020797,2]
[311447666,1705135839494,-522.66684843,0.00020805,2]
[311447667,1705135839504,-155.67305176,0.00020807,2]
[311447668,1705135839513,-164.35360079,0.00020807,2]
[311447669,1705135839522,-264.9672714,0.00020807,2]
[311447670,1705135839531,-160.73743715,0.00020807,2]
[311447671,1705135839540,-561.35483345,0.00020807,2]
[311447672,1705135839550,-5444.19564025,0.00020807,2]
[311447673,1705135839558,-198.89011836,0.00020807,2]
[311447674,1705135839567,-356.43634555,0.00020807,2]
[311447675,1705135839577,-155.13845381,0.00020807,2]
[311447676,1705135839586,-309.56754857,0.00020808,2]
[311447677,1705135839595,-774.46613219,0.00020808,2]
[311447678,1705135839605,-1413.40849044,0.00020808,2]
[311447679,1705135839614,-300.0,0.00020815,2]
[311447680,1705135839623,-5227.6440421,0.00020852,2]
[311447681,1705135839632,-1822.74700439,0.00021,2]
[311447682,1705135839642,-326.91284264,0.00021,2]
[311447683,1705135839651,-155.01705188,0.00021221,2]
[311447684,1705135839661,-222.02575,0.00021918,2]
[311447685,1705135839670,-3473.71863784,0.00022,2]
[311447686,1705135839679,-156.94549562,0.00022,2]
[311447687,1705135839688,-425.16748197,0.00022,2]
[311447688,1705135839697,-369.84061776,0.00022739,2]
[311447689,1705135839706,-391.0,0.00023343,7]
[311447690,1705135839715,-202.31516343,0.000239,2]
[311447691,1705135839725,-2844.80140438,0.00024,2]
[311447692,1705135839736,-222.02575,0.00024482,2]
[311447693,1705135839747,-3020.47058663,0.00025,2]
[311447694,1705135839757,-2000.0,0.00025,2]
[311447695,1705135839766,-2000.0,0.0002501,2]
[311447696,1705135839775,-2000.0,0.0002502,2]
[311447697,1705135839784,-2000.0,0.0002503,2]
[311447698,1705135839793,-2000.0,0.0002504,2]
[311447699,1705135839803,-2000.0,0.0002505,2]
[311447701,1705135839813,-3250.990183,0.0002506,2]
[311447703,1705135839823,-369.84061776,0.00025332,2]
[311447705,1705135839832,-200.0,0.00025677,7]
[311447706,1705135839842,-348.0,0.00025677,7]
[311447707,1705135839851,-3358.55149511,0.00027,2]
[311447708,1705135839860,-289.61737689,0.00027,2]
[311447709,1705135839869,-467.5107266,0.00027,2]
[311447710,1705135839878,-5000.0,0.00027397,2]
[311447711,1705135839887,-607.25284495,0.00027397,2]
[311447712,1705135839897,-9836.04,0.00027397,3]
[311447713,1705135839908,-8196.7,0.00027397,3]
[311447714,1705135839917,-6830.59,0.00027397,3]
[311447715,1705135839927,-5692.15,0.00027397,3]
[311447716,1705135839936,-10131.0472122,0.000274,2]
[311447717,1705135839945,-369.84061776,0.00027926,2]
[311447718,1705135839954,-8887.11213609,0.00028,2]
[311447719,1705135839963,-500.0,0.00028014,2]
[311447720,1705135839972,-500.0,0.00028014,2]
[311447721,1705135839981,-500.0,0.00028014,2]
[311447722,1705135839990,-500.0,0.00028014,2]
[311447723,1705135839999,-465.68487855,0.00028014,2]
[311447724,1705135840111,-532.07869345,0.00028014,2]
[311447725,1705135840121,-500.0,0.00028014,2]
[311447726,1705135840129,-500.0,0.00028014,2]
[311447727,1705135840138,-500.0,0.00028014,2]
[311447728,1705135840147,-500.0,0.00028014,2]
[311447729,1705135840158,-500.0,0.00028014,2]
[311447730,1705135840167,-500.0,0.00028014,2]
[311447731,1705135840175,-500.0,0.00028014,2]
[311447732,1705135840185,-164.53453314,0.00028014,2]
[311447733,1705135840194,-500.0,0.00028014,2]
[311447734,1705135840203,-500.0,0.00028014,2]
[311447735,1705135840212,-500.0,0.00028014,2]
[311447736,1705135840221,-500.0,0.00028014,2]
[311447737,1705135840230,-198.44670438,0.00028014,2]
[311447738,1705135840239,-500.0,0.00028014,2]
[311447739,1705135840248,-500.0,0.00028014,2]
[311447740,1705135840258,-500.0,0.00028014,2]
[311447741,1705135840266,-405.22926278,0.00028014,2]
[311447742,1705135840276,-616.07460337,0.00028014,2]